[Event "*** SCC Grand Prix: Titled Tuesday Blitz"]
[Site "Chess.com"]
[Date "2020.10.13"]
[Round "2"]
[White "vaishali2001"]
[Black "youngKID"]
[Result "0-1"]
[WhiteElo "2547"]
[BlackElo "2813"]
[TimeControl "180+1"]
[EndTime "10:17:21 PDT"]
[Termination "youngKID won by resignation"]

1. d4 {[%clk 0:03:00.9]} 1... Nf6 {[%clk 0:02:58.7]} 2. Bf4 {[%clk 0:03:00.9]}
2... g6 {[%clk 0:02:56.3]} 3. Nc3 {[%clk 0:02:59.3]} 3... d5 {[%clk 0:02:55.5]}
4. e3 {[%clk 0:02:58.4]} 4... a6 {[%clk 0:02:54.3]} 5. h4 {[%clk 0:02:47.3]}
5... Bg7 {[%clk 0:02:51.5]} 6. h5 {[%clk 0:02:33.5]} 6... Nxh5 {[%clk
0:02:37.6]} 7. Rxh5 {[%clk 0:02:31.5]} 7... gxh5 {[%clk 0:02:38]} 8. Qxh5 {[%clk
0:02:32.4]} 8... e6 {[%clk 0:02:30.4]} 9. Qh2 {[%clk 0:02:29.4]} 9... Nc6 {[%clk
0:02:23.4]} 10. Bxc7 {[%clk 0:02:23.9]} 10... Qe7 {[%clk 0:02:09]} 11. Bd6
{[%clk 0:02:18.9]} 11... Qd8 {[%clk 0:02:01.2]} 12. O-O-O {[%clk 0:02:04.4]}
12... b5 {[%clk 0:01:58.2]} 13. Bc7 {[%clk 0:01:51.4]} 13... Qd7 {[%clk
0:01:41.3]} 14. Nf3 {[%clk 0:01:41.8]} 14... Bb7 {[%clk 0:01:35.7]} 15. e4
{[%clk 0:01:27.2]} 15... Rc8 {[%clk 0:01:09.6]} 16. exd5 {[%clk 0:00:33.5]}
16... Qxc7 {[%clk 0:01:06.3]} 17. Qxc7 {[%clk 0:00:27.1]} 17... Rxc7 {[%clk
0:01:07.2]} 18. dxc6 {[%clk 0:00:27]} 18... Bxc6 {[%clk 0:01:08.1]} 19. Ne5
{[%clk 0:00:16.9]} 19... Bxe5 {[%clk 0:01:02.9]} 20. dxe5 {[%clk 0:00:17.8]}
20... Ke7 {[%clk 0:01:03.6]} 21. a3 {[%clk 0:00:15]} 21... h5 {[%clk 0:00:59]}
22. g3 {[%clk 0:00:06.7]} 22... h4 {[%clk 0:00:56]} 23. gxh4 {[%clk 0:00:07.6]}
23... Rxh4 {[%clk 0:00:56.8]} 24. Bd3 {[%clk 0:00:03.5]} 24... Rf4 {[%clk
0:00:48.1]} 25. Rf1 {[%clk 0:00:03.4]} 25... Bg2 {[%clk 0:00:47]} 26. Rg1 {[%clk
0:00:03.1]} 26... Bb7 {[%clk 0:00:41.5]} 27. Rf1 {[%clk 0:00:02.4]} 27... Rc5
{[%clk 0:00:40.9]} 28. Ne2 {[%clk 0:00:02.4]} 28... Rf3 {[%clk 0:00:37]} 29. Kd2
{[%clk 0:00:02.8]} 29... Rxe5 {[%clk 0:00:36.7]} 30. Nd4 {[%clk 0:00:03]} 30...
Rf4 {[%clk 0:00:34.9]} 31. c3 {[%clk 0:00:03.1]} 31... Bg2 {[%clk 0:00:33.6]}
32. Rg1 {[%clk 0:00:02.1]} 32... Rxf2+ {[%clk 0:00:33.8]} 33. Kc1 {[%clk
0:00:02.6]} 33... Rh5 {[%clk 0:00:28.6]} 34. Kb1 {[%clk 0:00:02.2]} 34... Rh1
{[%clk 0:00:27.9]} 35. Rxh1 {[%clk 0:00:02.7]} 35... Bxh1 {[%clk 0:00:28.8]} 36.
a4 {[%clk 0:00:03.4]} 36... bxa4 {[%clk 0:00:27.8]} 37. Bxa6 {[%clk 0:00:03.8]}
37... e5 {[%clk 0:00:28.3]} 38. Nc6+ {[%clk 0:00:03.7]} 0-1

[Event "*** SCC Grand Prix: Titled Tuesday Blitz"]
[Site "Chess.com"]
[Date "2020.10.13"]
[Round "2"]
[White "LionTheLeon_06"]
[Black "catzapto"]
[Result "1-0"]
[WhiteElo "2638"]
[BlackElo "2161"]
[TimeControl "180+1"]
[EndTime "10:17:21 PDT"]
[Termination "LionTheLeon_06 won by checkmate"]

1. a3 {[%clk 0:03:00.5]} 1... d5 {[%clk 0:02:58.1]} 2. b4 {[%clk 0:03:00.4]}
2... e5 {[%clk 0:02:57.7]} 3. Bb2 {[%clk 0:03:00.3]} 3... Bd6 {[%clk 0:02:56.9]}
4. g3 {[%clk 0:03:00.5]} 4... c6 {[%clk 0:02:57.4]} 5. Bg2 {[%clk 0:03:00.9]}
5... f5 {[%clk 0:02:57.3]} 6. d3 {[%clk 0:03:01.1]} 6... Nf6 {[%clk 0:02:57.8]}
7. Nd2 {[%clk 0:03:01.3]} 7... O-O {[%clk 0:02:57.7]} 8. Nb3 {[%clk 0:03:00.3]}
8... e4 {[%clk 0:02:52.7]} 9. e3 {[%clk 0:02:59.4]} 9... Nbd7 {[%clk 0:02:46.9]}
10. Ne2 {[%clk 0:02:59.4]} 10... Ne5 {[%clk 0:02:45.1]} 11. Bxe5 {[%clk
0:02:51.8]} 11... Bxe5 {[%clk 0:02:44.9]} 12. d4 {[%clk 0:02:52.7]} 12... Bc7
{[%clk 0:02:43.6]} 13. O-O {[%clk 0:02:47.2]} 13... g5 {[%clk 0:02:43.8]} 14.
Qc1 {[%clk 0:02:37.4]} 14... Nh5 {[%clk 0:02:40.5]} 15. f3 {[%clk 0:02:18.6]}
15... f4 {[%clk 0:02:27.5]} 16. fxe4 {[%clk 0:01:59.2]} 16... fxg3 {[%clk
0:02:17.6]} 17. e5 {[%clk 0:01:57.9]} 17... gxh2+ {[%clk 0:02:14.7]} 18. Kxh2
{[%clk 0:01:50.6]} 18... g4 {[%clk 0:02:09.4]} 19. Rxf8+ {[%clk 0:01:50.2]}
19... Kxf8 {[%clk 0:02:09.3]} 20. Qh1 {[%clk 0:01:31.4]} 20... Qg5 {[%clk
0:01:58]} 21. Rf1+ {[%clk 0:01:26.9]} 21... Kg8 {[%clk 0:01:46.6]} 22. Nf4
{[%clk 0:01:26.6]} 22... Bf5 {[%clk 0:01:16.8]} 23. Nc5 {[%clk 0:01:16.3]} 23...
Re8 {[%clk 0:00:48.8]} 24. Nxb7 {[%clk 0:00:42.8]} 24... Bxc2 {[%clk 0:00:43.5]}
25. Nc5 {[%clk 0:00:41]} 25... Bf5 {[%clk 0:00:41]} 26. Nxh5 {[%clk 0:00:30.9]}
26... Qxh5+ {[%clk 0:00:40.6]} 27. Kg3 {[%clk 0:00:31.2]} 27... Qg5 {[%clk
0:00:30]} 28. Kf2 {[%clk 0:00:29.1]} 28... g3+ {[%clk 0:00:26]} 29. Ke2 {[%clk
0:00:28.5]} 29... Bxe5 {[%clk 0:00:13]} 30. dxe5 {[%clk 0:00:21.5]} 30... Rxe5
{[%clk 0:00:13.9]} 31. Qg1 {[%clk 0:00:20.1]} 31... d4 {[%clk 0:00:14.1]} 32. e4
{[%clk 0:00:20.1]} 32... Bg4+ {[%clk 0:00:13]} 33. Bf3 {[%clk 0:00:20.5]} 33...
Bxf3+ {[%clk 0:00:12.5]} 34. Rxf3 {[%clk 0:00:20.8]} 34... Qg4 {[%clk
0:00:11.4]} 35. Qxg3 {[%clk 0:00:20.1]} 35... Qxg3 {[%clk 0:00:08.1]} 36. Rxg3+
{[%clk 0:00:21]} 36... Kf7 {[%clk 0:00:07.9]} 37. Kd3 {[%clk 0:00:21.5]} 37...
Rh5 {[%clk 0:00:07.5]} 38. Kxd4 {[%clk 0:00:21.8]} 38... Ke7 {[%clk 0:00:07]}
39. Rg7+ {[%clk 0:00:20.7]} 39... Kd6 {[%clk 0:00:07.3]} 40. Rd7# {[%clk
0:00:20.5]} 1-0

[Event "*** SCC Grand Prix: Titled Tuesday Blitz"]
[Site "Chess.com"]
[Date "2020.10.13"]
[Round "2"]
[White "Chamal_Gedgafov"]
[Black "SanchezKelvin"]
[Result "0-1"]
[WhiteElo "2166"]
[BlackElo "2408"]
[TimeControl "180+1"]
[EndTime "10:17:21 PDT"]
[Termination "SanchezKelvin won on time"]

1. d4 {[%clk 0:03:00.9]} 1... Nf6 {[%clk 0:02:59.4]} 2. c4 {[%clk 0:03:01.3]}
2... e6 {[%clk 0:02:49.6]} 3. Nc3 {[%clk 0:03:00.5]} 3... c5 {[%clk 0:02:49.3]}
4. d5 {[%clk 0:02:59.7]} 4... exd5 {[%clk 0:02:49.3]} 5. cxd5 {[%clk 0:03:00.6]}
5... d6 {[%clk 0:02:50.1]} 6. e4 {[%clk 0:03:01.1]} 6... g6 {[%clk 0:02:50.5]}
7. Bd3 {[%clk 0:03:01.8]} 7... a6 {[%clk 0:02:49.2]} 8. a4 {[%clk 0:03:00]} 8...
Bg7 {[%clk 0:02:49.2]} 9. Nge2 {[%clk 0:02:59.8]} 9... O-O {[%clk 0:02:48.8]}
10. O-O {[%clk 0:02:59.5]} 10... Nbd7 {[%clk 0:02:44.3]} 11. h3 {[%clk
0:02:59.1]} 11... Re8 {[%clk 0:02:42.5]} 12. Ng3 {[%clk 0:02:58.2]} 12... Rb8
{[%clk 0:02:41.5]} 13. Qc2 {[%clk 0:02:50.7]} 13... Qc7 {[%clk 0:02:38.7]} 14.
Be3 {[%clk 0:02:45.7]} 14... c4 {[%clk 0:02:38.3]} 15. Be2 {[%clk 0:02:45.5]}
15... Nc5 {[%clk 0:02:23.3]} 16. a5 {[%clk 0:02:25.7]} 16... Nb3 {[%clk
0:02:17.8]} 17. Ra4 {[%clk 0:02:18.8]} 17... Nxa5 {[%clk 0:02:15.9]} 18. Bd2
{[%clk 0:01:37.8]} 18... b5 {[%clk 0:02:09.6]} 19. Nxb5 {[%clk 0:01:21.9]} 19...
Rxb5 {[%clk 0:02:04.6]} 20. Bxc4 {[%clk 0:01:21.5]} 20... Nxc4 {[%clk
0:02:03.4]} 21. Rxc4 {[%clk 0:01:20.5]} 21... Qb8 {[%clk 0:01:58.2]} 22. Bc3
{[%clk 0:01:19.5]} 22... Bd7 {[%clk 0:01:49.5]} 23. f4 {[%clk 0:01:12.4]} 23...
Rb3 {[%clk 0:01:45.3]} 24. Rd1 {[%clk 0:01:07.5]} 24... Rb5 {[%clk 0:01:15]} 25.
Rcd4 {[%clk 0:00:53.9]} 25... h5 {[%clk 0:01:03.5]} 26. e5 {[%clk 0:00:43.6]}
26... dxe5 {[%clk 0:01:00.8]} 27. fxe5 {[%clk 0:00:44.5]} 27... Qxe5 {[%clk
0:01:00.5]} 28. R4d3 {[%clk 0:00:36.6]} 28... Qb8 {[%clk 0:00:57]} 29. d6 {[%clk
0:00:27.9]} 29... h4 {[%clk 0:00:53.4]} 30. Rf3 {[%clk 0:00:19.7]} 30... hxg3
{[%clk 0:00:48.5]} 31. Bxf6 {[%clk 0:00:18.4]} 31... Bf5 {[%clk 0:00:48.1]} 32.
Qc3 {[%clk 0:00:15.7]} 32... Qb6+ {[%clk 0:00:39]} 33. Kh1 {[%clk 0:00:14.5]}
33... Rc8 {[%clk 0:00:32.9]} 34. Rxf5 {[%clk 0:00:05.2]} 34... Rxc3 {[%clk
0:00:29.4]} 35. d7 {[%clk 0:00:05.1]} 35... Bxf6 {[%clk 0:00:29.2]} 36. Rxf6
{[%clk 0:00:03]} 36... Qxf6 {[%clk 0:00:26.6]} 37. d8=Q+ {[%clk 0:00:02.2]}
37... Qxd8 {[%clk 0:00:25.1]} 38. Rxd8+ {[%clk 0:00:03.1]} 38... Kg7 {[%clk
0:00:25.2]} 0-1

[Event "*** SCC Grand Prix: Titled Tuesday Blitz"]
[Site "Chess.com"]
[Date "2020.10.13"]
[Round "2"]
[White "Herracek"]
[Black "ferdipy"]
[Result "0-1"]
[WhiteElo "2607"]
[BlackElo "2325"]
[TimeControl "180+1"]
[EndTime "10:17:22 PDT"]
[Termination "ferdipy won by checkmate"]

1. c4 {[%clk 0:03:00.9]} 1... e5 {[%clk 0:02:59]} 2. g3 {[%clk 0:02:54.6]} 2...
Nc6 {[%clk 0:02:59.3]} 3. Bg2 {[%clk 0:02:54.7]} 3... g6 {[%clk 0:03:00.2]} 4.
Nc3 {[%clk 0:02:54.3]} 4... Bg7 {[%clk 0:03:01.1]} 5. Rb1 {[%clk 0:02:55.2]}
5... d6 {[%clk 0:03:01.6]} 6. b4 {[%clk 0:02:54.9]} 6... Nge7 {[%clk 0:02:59]}
7. e3 {[%clk 0:02:53.3]} 7... Be6 {[%clk 0:02:57]} 8. b5 {[%clk 0:02:53]} 8...
Na5 {[%clk 0:02:55.8]} 9. d3 {[%clk 0:02:51.9]} 9... Rb8 {[%clk 0:02:52.6]} 10.
Qa4 {[%clk 0:02:49.4]} 10... b6 {[%clk 0:02:51.9]} 11. Nge2 {[%clk 0:02:49.6]}
11... Qd7 {[%clk 0:02:52]} 12. Bd2 {[%clk 0:02:46.4]} 12... Bh3 {[%clk
0:02:50.5]} 13. O-O {[%clk 0:02:45.5]} 13... h5 {[%clk 0:02:47.5]} 14. f3 {[%clk
0:02:29.2]} 14... h4 {[%clk 0:02:43.8]} 15. Bxh3 {[%clk 0:02:08.9]} 15... Qxh3
{[%clk 0:02:41.9]} 16. g4 {[%clk 0:02:09.5]} 16... f5 {[%clk 0:02:33.3]} 17. Nd1
{[%clk 0:02:10.1]} 17... fxg4 {[%clk 0:02:30.7]} 18. Nf2 {[%clk 0:02:10.3]}
18... Qxf3 {[%clk 0:02:30.7]} 19. Ne4 {[%clk 0:01:29.4]} 19... Qxe2 {[%clk
0:02:21.2]} 20. Bxa5 {[%clk 0:01:28.6]} 20... g3 {[%clk 0:01:33.7]} 21. Nf2
{[%clk 0:01:08.5]} 21... gxf2+ {[%clk 0:01:23.1]} 22. Rxf2 {[%clk 0:01:09.4]}
22... Qxd3 {[%clk 0:01:23.9]} 23. Re1 {[%clk 0:01:04.7]} 23... bxa5 {[%clk
0:01:15.3]} 24. b6+ {[%clk 0:01:04.6]} 24... c6 {[%clk 0:01:16]} 25. bxa7 {[%clk
0:01:03]} 25... Ra8 {[%clk 0:01:16.2]} 26. Qxa5 {[%clk 0:00:54.1]} 26... Nf5
{[%clk 0:00:44.4]} 27. Qc7 {[%clk 0:00:50]} 27... O-O {[%clk 0:00:44.5]} 28. Qb7
{[%clk 0:00:20.3]} 28... Qxc4 {[%clk 0:00:38.1]} 29. e4 {[%clk 0:00:18.9]} 29...
Qc5 {[%clk 0:00:19.4]} 30. exf5 {[%clk 0:00:16.3]} 30... Rxa7 {[%clk 0:00:20]}
31. Qb3+ {[%clk 0:00:16]} 31... d5 {[%clk 0:00:19.8]} 32. Kf1 {[%clk 0:00:10.1]}
32... Rxf5 {[%clk 0:00:17.6]} 33. Rxf5 {[%clk 0:00:10]} 33... gxf5 {[%clk
0:00:18.5]} 34. Qb8+ {[%clk 0:00:06.9]} 34... Kf7 {[%clk 0:00:18.6]} 35. Re2
{[%clk 0:00:07.8]} 35... Qc1+ {[%clk 0:00:16.5]} 36. Kg2 {[%clk 0:00:08.1]}
36... Qg5+ {[%clk 0:00:15.7]} 37. Kh3 {[%clk 0:00:08.3]} 37... Re7 {[%clk
0:00:16.4]} 38. Qd6 {[%clk 0:00:07.6]} 38... Qg4# {[%clk 0:00:16.6]} 0-1

[Event "*** SCC Grand Prix: Titled Tuesday Blitz"]
[Site "Chess.com"]
[Date "2020.10.13"]
[Round "2"]
[White "NewBornNow"]
[Black "AnnaChessLook"]
[Result "1-0"]
[WhiteElo "2640"]
[BlackElo "2229"]
[TimeControl "180+1"]
[EndTime "10:17:23 PDT"]
[Termination "NewBornNow won by checkmate"]

1. e4 {[%clk 0:03:00.9]} 1... c5 {[%clk 0:02:59.9]} 2. Nf3 {[%clk 0:03:00]} 2...
Nc6 {[%clk 0:02:59.9]} 3. Bb5 {[%clk 0:02:56.8]} 3... g6 {[%clk 0:02:59]} 4.
Bxc6 {[%clk 0:02:56.7]} 4... dxc6 {[%clk 0:02:58.1]} 5. h3 {[%clk 0:02:55.6]}
5... Bg7 {[%clk 0:02:57.1]} 6. d3 {[%clk 0:02:51.9]} 6... Nf6 {[%clk 0:02:55.6]}
7. Nc3 {[%clk 0:02:51.4]} 7... Nd7 {[%clk 0:02:54.1]} 8. O-O {[%clk 0:02:48.8]}
8... e5 {[%clk 0:02:53.3]} 9. Nh2 {[%clk 0:02:44.1]} 9... O-O {[%clk 0:02:52.8]}
10. f4 {[%clk 0:02:43.7]} 10... exf4 {[%clk 0:02:52.5]} 11. Bxf4 {[%clk
0:02:43.5]} 11... Ne5 {[%clk 0:02:39.4]} 12. Qd2 {[%clk 0:02:37]} 12... Re8
{[%clk 0:02:32.5]} 13. Nf3 {[%clk 0:02:29.2]} 13... Nxf3+ {[%clk 0:02:26.9]} 14.
Rxf3 {[%clk 0:02:28.5]} 14... Be6 {[%clk 0:02:22.3]} 15. Raf1 {[%clk 0:02:26.8]}
15... c4 {[%clk 0:02:19.8]} 16. Kh1 {[%clk 0:02:18.6]} 16... cxd3 {[%clk
0:02:18.6]} 17. cxd3 {[%clk 0:02:17.5]} 17... Qd7 {[%clk 0:02:15.5]} 18. Bh6
{[%clk 0:02:07.4]} 18... Bh8 {[%clk 0:02:13.8]} 19. Bg5 {[%clk 0:01:56.3]} 19...
c5 {[%clk 0:02:02.2]} 20. Qf2 {[%clk 0:01:50.1]} 20... b6 {[%clk 0:02:00.1]} 21.
Qh4 {[%clk 0:01:47.8]} 21... Qd4 {[%clk 0:01:47.4]} 22. Ne2 {[%clk 0:01:12.1]}
22... Qxb2 {[%clk 0:01:32.7]} 23. Nf4 {[%clk 0:01:08.7]} 23... Bxa2 {[%clk
0:01:29]} 24. Nd5 {[%clk 0:00:54.1]} 24... Bxd5 {[%clk 0:01:26.9]} 25. exd5
{[%clk 0:00:52.1]} 25... f5 {[%clk 0:01:26.8]} 26. g4 {[%clk 0:00:33.9]} 26...
Re2 {[%clk 0:01:16.6]} 27. Bf4 {[%clk 0:00:22.7]} 27... Bf6 {[%clk 0:00:46.6]}
28. Qg3 {[%clk 0:00:22.2]} 28... fxg4 {[%clk 0:00:41.2]} 29. Qxg4 {[%clk
0:00:19.6]} 29... Rd8 {[%clk 0:00:36.8]} 30. Bc1 {[%clk 0:00:18.4]} 30... Rh2+
{[%clk 0:00:29.9]} 31. Kg1 {[%clk 0:00:18.1]} 31... Bd4+ {[%clk 0:00:30.4]} 32.
Be3 {[%clk 0:00:17.2]} 32... Re2 {[%clk 0:00:20]} 33. Qe6+ {[%clk 0:00:13.9]}
33... Kh8 {[%clk 0:00:13.5]} 34. Rf8+ {[%clk 0:00:13.2]} 34... Rxf8 {[%clk
0:00:14.2]} 35. Rxf8+ {[%clk 0:00:12.8]} 35... Kg7 {[%clk 0:00:15.1]} 36. Rg8#
{[%clk 0:00:12.8]} 1-0

[Event "*** SCC Grand Prix: Titled Tuesday Blitz"]
[Site "Chess.com"]
[Date "2020.10.13"]
[Round "2"]
[White "PrinceMurad09"]
[Black "Margarita2907"]
[Result "1/2-1/2"]
[WhiteElo "2529"]
[BlackElo "2185"]
[TimeControl "180+1"]
[EndTime "10:17:23 PDT"]
[Termination "Game drawn by repetition"]

1. e4 {[%clk 0:02:58.7]} 1... c5 {[%clk 0:02:58.2]} 2. Nf3 {[%clk 0:02:57.9]}
2... d6 {[%clk 0:02:57.7]} 3. d4 {[%clk 0:02:57.3]} 3... cxd4 {[%clk 0:02:57.9]}
4. Nxd4 {[%clk 0:02:57.6]} 4... Nf6 {[%clk 0:02:58.2]} 5. Nc3 {[%clk 0:02:57.9]}
5... a6 {[%clk 0:02:57.9]} 6. h3 {[%clk 0:02:57.5]} 6... e6 {[%clk 0:02:48.6]}
7. a4 {[%clk 0:02:56.9]} 7... Nc6 {[%clk 0:02:38.8]} 8. Nb3 {[%clk 0:02:56.1]}
8... d5 {[%clk 0:02:33.2]} 9. exd5 {[%clk 0:02:55.6]} 9... Nxd5 {[%clk
0:02:32.8]} 10. Nxd5 {[%clk 0:02:55.2]} 10... Qxd5 {[%clk 0:02:33]} 11. Qxd5
{[%clk 0:02:55.4]} 11... exd5 {[%clk 0:02:33.7]} 12. Be2 {[%clk 0:02:55.9]}
12... Bf5 {[%clk 0:02:19.5]} 13. c3 {[%clk 0:02:56]} 13... Be7 {[%clk
0:02:10.3]} 14. Be3 {[%clk 0:02:56]} 14... O-O {[%clk 0:02:07.1]} 15. O-O-O
{[%clk 0:02:55.8]} 15... Rfd8 {[%clk 0:02:03.5]} 16. Bf3 {[%clk 0:02:47.8]}
16... Be4 {[%clk 0:01:59.4]} 17. Nd2 {[%clk 0:02:46.9]} 17... Bxf3 {[%clk
0:01:57.1]} 18. Nxf3 {[%clk 0:02:47.8]} 18... b5 {[%clk 0:01:52.2]} 19. axb5
{[%clk 0:02:42.3]} 19... axb5 {[%clk 0:01:53.1]} 20. Kc2 {[%clk 0:02:41.9]}
20... b4 {[%clk 0:01:48.3]} 21. Ra1 {[%clk 0:02:33.8]} 21... bxc3 {[%clk
0:01:43.9]} 22. bxc3 {[%clk 0:02:34.7]} 22... Bf6 {[%clk 0:01:21.4]} 23. Rhd1
{[%clk 0:02:27.2]} 23... Rxa1 {[%clk 0:01:19.7]} 24. Rxa1 {[%clk 0:02:28.1]}
24... h6 {[%clk 0:01:05.7]} 25. Ra6 {[%clk 0:02:25.3]} 25... Rc8 {[%clk
0:01:02.2]} 26. Kd3 {[%clk 0:02:15.7]} 26... Bxc3 {[%clk 0:00:56.3]} 27. Ra4
{[%clk 0:01:59.9]} 27... Bf6 {[%clk 0:00:49]} 28. Bf4 {[%clk 0:01:58.3]} 28...
Re8 {[%clk 0:00:43.1]} 29. g3 {[%clk 0:01:51.6]} 29... Ne5+ {[%clk 0:00:18.8]}
30. Nxe5 {[%clk 0:01:48.3]} 30... Bxe5 {[%clk 0:00:19.7]} 31. Ra5 {[%clk
0:01:41.7]} 31... Bxf4 {[%clk 0:00:18.5]} 32. gxf4 {[%clk 0:01:42.6]} 32... Re4
{[%clk 0:00:17.5]} 33. f5 {[%clk 0:01:41.1]} 33... Re5 {[%clk 0:00:16.5]} 34. f6
{[%clk 0:01:38.3]} 34... gxf6 {[%clk 0:00:16.3]} 35. f4 {[%clk 0:01:38.1]} 35...
Rh5 {[%clk 0:00:14.6]} 36. Kd4 {[%clk 0:01:35.6]} 36... Rxh3 {[%clk 0:00:12.8]}
37. Rxd5 {[%clk 0:01:35.3]} 37... Rh4 {[%clk 0:00:11.7]} 38. Ke4 {[%clk
0:01:35.3]} 38... Kg7 {[%clk 0:00:11.7]} 39. Kf3 {[%clk 0:01:34.9]} 39... Rh1
{[%clk 0:00:10.6]} 40. Rd2 {[%clk 0:01:33.8]} 40... h5 {[%clk 0:00:09.7]} 41.
Rg2+ {[%clk 0:01:33]} 41... Kh6 {[%clk 0:00:07.7]} 42. Rg8 {[%clk 0:01:33.1]}
42... Rf1+ {[%clk 0:00:05.6]} 43. Ke4 {[%clk 0:01:30.5]} 43... h4 {[%clk
0:00:03.8]} 44. Rh8+ {[%clk 0:01:30.4]} 44... Kg6 {[%clk 0:00:03.9]} 45. Rxh4
{[%clk 0:01:30.3]} 45... f5+ {[%clk 0:00:03.3]} 46. Ke3 {[%clk 0:01:29.7]} 46...
Re1+ {[%clk 0:00:02.6]} 47. Kf2 {[%clk 0:01:30.1]} 47... Ra1 {[%clk 0:00:03.2]}
48. Rh8 {[%clk 0:01:29]} 48... Ra2+ {[%clk 0:00:03.9]} 49. Kf1 {[%clk
0:01:23.8]} 49... Ra3 {[%clk 0:00:04.8]} 50. Rh2 {[%clk 0:01:21.7]} 50... Kf6
{[%clk 0:00:05.4]} 51. Rb2 {[%clk 0:01:21.1]} 51... Ra1+ {[%clk 0:00:05.7]} 52.
Kf2 {[%clk 0:01:21.3]} 52... Ra4 {[%clk 0:00:06.3]} 53. Rb6+ {[%clk 0:01:18.4]}
53... Ke7 {[%clk 0:00:06]} 54. Kg3 {[%clk 0:01:18.7]} 54... Ra3+ {[%clk
0:00:05.2]} 55. Kh4 {[%clk 0:01:19.1]} 55... Ra4 {[%clk 0:00:06.1]} 56. Kg5
{[%clk 0:01:19.4]} 56... Ra5 {[%clk 0:00:05.9]} 57. Rb7+ {[%clk 0:01:19.7]}
57... Ke6 {[%clk 0:00:05.4]} 58. Rb6+ {[%clk 0:01:19.5]} 58... Ke7 {[%clk
0:00:05.9]} 59. Rf6 {[%clk 0:01:19.6]} 59... Rb5 {[%clk 0:00:04.4]} 60. Ra6
{[%clk 0:01:19.3]} 60... Rc5 {[%clk 0:00:04.1]} 61. Rb6 {[%clk 0:01:19.8]} 61...
Ra5 {[%clk 0:00:03.7]} 1/2-1/2

[Event "*** SCC Grand Prix: Titled Tuesday Blitz"]
[Site "Chess.com"]
[Date "2020.10.13"]
[Round "2"]
[White "Region_07"]
[Black "GM_Levan_Pantsulaia"]
[Result "0-1"]
[WhiteElo "2347"]
[BlackElo "2802"]
[TimeControl "180+1"]
[EndTime "10:17:23 PDT"]
[Termination "GM_Levan_Pantsulaia won by resignation"]

1. d4 {[%clk 0:03:00.7]} 1... Nf6 {[%clk 0:02:59.3]} 2. Bg5 {[%clk 0:02:59.7]}
2... c5 {[%clk 0:02:57.3]} 3. dxc5 {[%clk 0:02:59.1]} 3... Ne4 {[%clk
0:02:46.9]} 4. h4 {[%clk 0:02:56.6]} 4... Qa5+ {[%clk 0:02:41.5]} 5. Nd2 {[%clk
0:02:56.4]} 5... Nxg5 {[%clk 0:02:30]} 6. hxg5 {[%clk 0:02:57.3]} 6... Qxc5
{[%clk 0:02:30]} 7. g6 {[%clk 0:02:56.4]} 7... fxg6 {[%clk 0:02:28.1]} 8. Ngf3
{[%clk 0:02:57]} 8... Nc6 {[%clk 0:02:24.6]} 9. e3 {[%clk 0:02:57.3]} 9... d5
{[%clk 0:02:22]} 10. Bd3 {[%clk 0:02:56.5]} 10... Bf5 {[%clk 0:02:20.9]} 11. Nb3
{[%clk 0:02:56.6]} 11... Qd6 {[%clk 0:02:20.2]} 12. Nbd4 {[%clk 0:02:55]} 12...
e6 {[%clk 0:02:11.5]} 13. Qe2 {[%clk 0:02:37.6]} 13... Be7 {[%clk 0:02:04.8]}
14. O-O-O {[%clk 0:02:29.2]} 14... O-O {[%clk 0:02:01.7]} 15. Kb1 {[%clk
0:02:22.5]} 15... Bg4 {[%clk 0:01:54.6]} 16. c4 {[%clk 0:02:01.2]} 16... Bf6
{[%clk 0:01:45.8]} 17. cxd5 {[%clk 0:01:53.3]} 17... exd5 {[%clk 0:01:46.7]} 18.
Bc2 {[%clk 0:01:52.3]} 18... Bxd4 {[%clk 0:01:40.4]} 19. exd4 {[%clk 0:01:52]}
19... Rae8 {[%clk 0:01:35.1]} 20. Qd2 {[%clk 0:01:50.3]} 20... Bxf3 {[%clk
0:01:29.7]} 21. gxf3 {[%clk 0:01:51.2]} 21... Rxf3 {[%clk 0:01:25.3]} 22. Bb3
{[%clk 0:01:46.2]} 22... Ref8 {[%clk 0:01:18.4]} 23. Qe2 {[%clk 0:01:36.8]}
23... a6 {[%clk 0:01:13]} 24. Qf1 {[%clk 0:00:59.5]} 24... Rxf2 {[%clk
0:01:10.5]} 25. Qh3 {[%clk 0:00:59.5]} 25... h6 {[%clk 0:01:06.8]} 26. Rde1
{[%clk 0:00:53.8]} 26... Nxd4 {[%clk 0:01:01.7]} 27. Rd1 {[%clk 0:00:43.8]}
27... Nxb3 {[%clk 0:00:59.7]} 28. Qxb3 {[%clk 0:00:44.7]} 28... g5 {[%clk
0:00:48.1]} 29. Rxd5 {[%clk 0:00:43]} 29... Qg6+ {[%clk 0:00:47.2]} 30. Ka1
{[%clk 0:00:41.7]} 30... Kh7 {[%clk 0:00:46.5]} 31. Rdd1 {[%clk 0:00:26.7]}
31... b5 {[%clk 0:00:45.4]} 32. a3 {[%clk 0:00:26.3]} 32... R8f3 {[%clk
0:00:43.5]} 33. Qb4 {[%clk 0:00:25.6]} 33... Rf4 {[%clk 0:00:43.4]} 34. Qc5
{[%clk 0:00:23.7]} 34... Qf6 {[%clk 0:00:42.9]} 35. Rb1 {[%clk 0:00:22.8]} 35...
R4f3 {[%clk 0:00:41.8]} 36. Rhd1 {[%clk 0:00:17.3]} 36... g4 {[%clk 0:00:38]}
37. Rd6 {[%clk 0:00:16.9]} 37... Qf5 {[%clk 0:00:32.1]} 38. Qc7 {[%clk
0:00:14.6]} 38... Rxa3+ {[%clk 0:00:25.3]} 39. bxa3 {[%clk 0:00:14.3]} 39...
Qe5+ {[%clk 0:00:25]} 0-1